fUSD/lending_fUSD_20240125
["ID","MTS","AMOUNT","RATE_DAILY","PERIOD"]
[312702019,1706165835619,274.70762631,0.00021574,2]
[312702020,1706165835668,473.90353095,0.00021619,2]
[312702021,1706165835701,302.67635463,0.00021619,2]
[312702022,1706165835763,610.57725012,0.00021574,2]
[312702023,1706165835813,3194.72146129,0.00020755,2]
[312702024,1706165836467,260.54721696,0.00021619,2]
[312702025,1706165836526,247.42374992,0.00021404,2]
[312702026,1706165836621,420.14050974,0.00021619,2]
[312702027,1706165837157,556.72909579,0.00021574,5]
[312702028,1706165837603,395.73303966,0.00021619,2]
[312702029,1706165838161,543.67099272,0.00021619,2]
[312702030,1706165838884,652.44823532,0.00021619,2]
[312702031,1706165839049,223.33534351,0.00021404,4]
[312702032,1706165839162,337.65655029,0.00021618,2]
[312702033,1706165839341,491.88467827,0.00019457,5]
[312702034,1706165839372,155.0,0.00021619,2]
[312702035,1706165839526,400.68545896,0.00020539,2]
[312702036,1706165840311,524.52603564,0.00021618,2]
[312702037,1706165840380,155.0,0.00021618,2]
[312702038,1706165840606,202.95771051,0.00021618,2]
[312702039,1706165840634,155.12849979,0.00021619,2]
[312702040,1706165840777,385.15009443,0.00021618,2]
[312702041,1706165840817,629.77338957,0.00021619,2]
[312702042,1706165841023,155.0,0.00021619,2]
[312702043,1706165841049,503.15147895,0.00021403,2]
[312702044,1706165841080,162.44660068,0.00021618,2]
[312702045,1706165841713,546.27244438,0.00021574,7]
[312702046,1706165841768,407.66796067,0.00021619,2]
[312702047,1706165841965,263.78633249,0.00021619,2]
[312702048,1706165841999,338.11371831,0.00021618,2]
[312702049,1706165842082,3870.74505734,0.00021619,2]
[312702050,1706165842337,301.71338439,0.00021618,2]
[312702051,1706165842684,155.20105148,0.00021619,2]
[312702052,1706165842732,155.0,0.00021619,2]
[312702053,1706165842801,155.0,0.00021619,2]
[312702054,1706165843509,197.22319472,0.00021619,2]
[312702055,1706165843536,155.35482201,0.00021619,2]
[312702056,1706165844008,155.0,0.00021619,2]
[312702057,1706165844120,155.0,0.00021619,2]
[312702058,1706165844873,215.80277915,0.00021599,2]
[312702059,1706165844944,285.79694982,0.00021619,2]
[312702060,1706165845121,226.33776838,0.00021619,2]
[312702061,1706165845836,155.0,0.00021619,2]
[312702062,1706165845877,412.75724785,0.00021619,2]
[312702063,1706165845923,247.03342612,0.00021619,2]
[312702064,1706165846000,155.11142294,0.00021619,2]
[312702065,1706165846032,203.5831926,0.00021619,2]
[312702066,1706165846075,159.02563716,0.00021619,2]
[312702067,1706165846114,521.60885619,0.00021619,2]
[312702068,1706165846151,155.0,0.00021619,2]
[312702069,1706165846245,343.64376073,0.00021619,2]
[312702070,1706165846300,421.26245119,0.00020754,2]
[312702071,1706165846848,524.74840027,0.00021619,2]
[312702072,1706165847422,155.08420005,0.00021619,2]
[312702073,1706165847687,304.00204828,0.00021511,2]
[312702074,1706165848445,504.52526623,0.00021619,2]
[312702075,1706165848483,697.78234841,0.00021619,2]
[312702076,1706165848602,361.3216315,0.00017295,2]
[312702077,1706165849073,690.49430514,0.00021619,2]
[312702078,1706165849200,191.11582529,0.00021619,2]
[312702079,1706165849366,290.49042575,0.00021619,2]
[312702080,1706165849400,475.48501987,0.00021619,2]
[312702081,1706165849430,242.22546231,0.00021,2]
[312702082,1706165849958,199.52500903,0.00021619,2]
[312702083,1706165850340,155.0,0.00021619,2]
[312702084,1706165850449,362.21973642,0.00021619,2]
[312702085,1706165850721,868.30882633,0.00021619,2]
[312702086,1706165851180,175.89175399,0.00021619,2]
[312702087,1706165851383,284.18,0.00021401,3]
[312702090,1706165853134,652.44823532,0.00021619,2]
[312702091,1706165853198,250.0,0.00021401,2]
[312702092,1706165853258,155.0,0.00021403,2]
[312702093,1706165853306,337.65655029,0.00021619,2]
[312702094,1706165853414,233.51822103,0.00021619,2]
[312702095,1706165853518,303.87232241,0.00021619,2]
[312702096,1706165853766,1585.47593993,0.00020754,2]
[312702097,1706165853805,216.67661674,0.0002,2]
[312702098,1706165854152,196.86576814,0.00021619,2]
[312702099,1706165854184,387.51113829,0.00021619,2]
[312702100,1706165854335,376.16984491,0.00021619,2]
[312702101,1706165854599,202.95771051,0.00021619,2]
[312702102,1706165854630,420.14050974,0.00021608,2]
[312702103,1706165855035,162.58141414,0.00021619,2]
[312702104,1706165856529,247.42374992,0.00021403,2]
[312702105,1706165856961,1000.0,0.00021619,2]
[312702106,1706165857626,395.73303966,0.00021403,2]
[312702107,1706165857741,337.89074665,0.00021619,2]
[312702108,1706165858168,377.48093433,0.00021619,2]
[312702109,1706165858412,279.7293285,0.00021619,2]
[312702110,1706165858965,260.54721696,0.00021619,2]
[312702111,1706165858993,166.51383614,0.00021403,4]
[312702112,1706165859317,155.0,0.00021619,2]
[312702113,1706165859908,281.61083133,0.00021403,2]
[312702114,1706165860764,629.77338957,0.00021619,2]
[312702115,1706165861731,204.30866332,0.00021619,2]
[312702116,1706165861798,159.02563716,0.00021619,2]
[312702117,1706165863704,405.30764282,0.00021511,7]
[312702118,1706165863909,246.92644226,0.00021619,2]
[312702119,1706165864046,155.0,0.00021619,2]
[312702120,1706165864470,264.77091097,0.00021619,2]
[312702121,1706165867927,10568.54913855,0.00021619,2]
[312702122,1706165868603,348.69109107,0.00017296,2]
[312702123,1706165870890,654.32443634,0.00021619,2]
[312702124,1706165871074,690.49430514,0.00021619,2]
[312702125,1706165871214,233.51822103,0.00021619,2]
[312702126,1706165872566,33414.03953836,0.00021619,2]
[312702127,1706165872600,203.60517876,0.00021619,2]
[312702128,1706165872812,155.0,0.00021619,2]
[312702129,1706165872975,260.33436908,0.00021619,2]
[312702130,1706165873098,260.45957347,0.00021403,2]
[312702131,1706165873496,155.0,0.00021619,2]
[312702132,1706165874336,155.0,0.00021619,2]
[312702133,1706165874909,1000.0,0.00021619,2]
[312702134,1706165876180,387.51113829,0.00021619,2]
[312702135,1706165876406,279.7293285,0.00021619,2]
[312702136,1706165877606,395.73303966,0.00021403,2]
[312702137,1706165878572,247.42374992,0.00021403,2]
[312702138,1706165878625,419.78816227,0.00021608,2]
[312702139,1706165878708,206.2126,0.00021541,2]
[312702140,1706165878924,155.0,0.00021618,2]
[312702141,1706165879340,155.37493691,0.00021619,2]
[312702142,1706165880040,155.0,0.00021619,2]
[312702143,1706165880731,155.0,0.00021619,2]
[312702144,1706165880780,629.34090171,0.00021619,2]
[312702145,1706165881799,159.02563716,0.00021619,2]
[312702146,1706165881939,10568.54913855,0.00021619,2]
[312702147,1706165883604,-2506.67933284,0.0002162,2]
[312702148,1706165883624,-371.72065286,0.0002162,2]
[312702149,1706165883646,-204.27170755,0.0002162,2]
[312702150,1706165883666,-155.16626904,0.0002162,2]
[312702151,1706165883685,-162.65321079,0.0002162,2]
[312702152,1706165883705,-155.0,0.0002162,2]
[312702153,1706165883725,-310.6035145,0.0002162,2]
[312702154,1706165883744,-155.0,0.0002162,2]
[312702155,1706165883763,-355.01316218,0.0002162,2]
[312702156,1706165883783,-155.2812421,0.0002162,2]
[312702157,1706165883803,-274.22067117,0.0002162,2]
[312702158,1706165883824,-155.0,0.0002162,2]
[312702159,1706165883847,-172.09680919,0.0002162,2]
[312702160,1706165883867,-235.42973985,0.0002162,2]
[312702161,1706165883887,-155.0,0.0002162,2]
[312702162,1706165883906,-232.33006862,0.0002162,2]
[312702163,1706165883925,-366.02277432,0.0002162,2]
[312702164,1706165883944,-155.0,0.0002162,2]
[312702165,1706165883963,-314.71110376,0.0002162,2]
[312702166,1706165883983,-698.8735926,0.0002162,2]
[312702167,1706165884002,-582.84742818,0.0002162,2]
[312702168,1706165884022,-155.0,0.0002162,2]
[312702169,1706165884042,-155.12126467,0.0002162,2]
[312702170,1706165884062,-155.11046498,0.0002162,2]
[312702171,1706165884081,-155.12316903,0.0002162,2]
[312702172,1706165884104,-155.07910777,0.0002162,2]
[312702173,1706165884129,-155.31157241,0.0002162,2]
[312702174,1706165884158,-242.82595575,0.0002162,2]
[312702175,1706165884186,-155.08246184,0.0002162,2]
[312702176,1706165884207,-155.20306406,0.0002162,2]
[312702177,1706165884228,-155.0,0.0002162,2]
[312702178,1706165884251,-250.66764355,0.0002162,2]
[312702179,1706165884272,-221.76603348,0.0002162,2]
[312702180,1706165884294,-155.23817972,0.0002162,2]
[312702181,1706165884316,-245.26780635,0.0002162,2]
[312702182,1706165884338,-155.19155757,0.0002162,2]
[312702183,1706165884358,-230.86080006,0.0002162,2]
[312702184,1706165884384,-155.27629146,0.0002162,2]
[312702185,1706165884405,-155.0,0.0002162,2]
[312702186,1706165884428,-155.10238437,0.0002162,2]
[312702187,1706165884449,-160.88730639,0.0002162,2]
[312702188,1706165884471,-532.21210601,0.0002162,2]
[312702189,1706165884493,-165.07307558,0.0002162,2]
[312702190,1706165884515,-155.36341877,0.0002162,2]
[312702191,1706165884539,-265.85689275,0.0002162,2]
[312702192,1706165884564,-401.03358243,0.0002162,2]
[312702193,1706165884586,-218.2736471,0.0002162,2]
[312702194,1706165884606,-2605.35682131,0.0002162,2]
[312702195,1706165884626,-377.34062338,0.0002162,2]
[312702196,1706165884646,-178.08479796,0.0002162,2]
[312702197,1706165884666,-524.30007126,0.0002162,2]
[312702198,1706165884687,-514.40897607,0.0002162,2]
[312702199,1706165884707,-155.60727124,0.0002162,2]
[312702200,1706165884731,-155.0,0.0002162,2]
[312702201,1706165884752,-285.66659166,0.0002162,2]
[312702202,1706165884772,-197.13116572,0.0002162,2]
[312702203,1706165884795,-176.55976016,0.0002162,2]
[312702204,1706165884816,-155.0,0.0002162,2]
[312702205,1706165884838,-155.50216158,0.0002162,2]
[312702206,1706165884859,-226.33776838,0.0002162,2]
[312702207,1706165884880,-414.1012816,0.0002162,2]
[312702208,1706165884900,-155.0,0.0002162,2]
[312702209,1706165884920,-521.60885619,0.0002162,2]
[312702210,1706165884940,-238.49764122,0.0002162,2]
[312702211,1706165884961,-345.17816483,0.0002162,2]
[312702212,1706165884984,-700.45325925,0.0002162,2]
[312702213,1706165885003,-337.35674075,0.0002162,2]
[312702214,1706165885025,-362.06664412,0.0002162,2]
[312702215,1706165885048,-524.3658931,0.0002162,2]
[312702216,1706165885069,-199.52500903,0.0002162,2]
[312702217,1706165885090,-219.68842588,0.0002162,2]
[312702218,1706165885117,-868.30882633,0.0002162,2]
[312702219,1706165885140,-300.0,0.00021621,2]
[312702220,1706165885162,-5972.70418333,0.00021621,2]
[312702221,1706165885536,169.93553836,0.00021403,2]
[312702222,1706165885655,525.90736384,0.00021619,2]
[312702223,1706165885955,952.505,0.00021541,2]
[312702224,1706165886083,502.11703257,0.00021619,2]
[312702225,1706165887137,488.8095824,0.00021619,2]
[312702226,1706165888423,155.0,0.00021619,2]
[312702227,1706165891080,690.49430514,0.00021619,2]
[312702228,1706165892956,295.89802556,0.00021402,2]
[312702229,1706165893607,395.73303966,0.00021403,2]
[312702230,1706165894042,157.26965345,0.00021619,2]
[312702231,1706165894091,281.79251963,0.00021619,2]
[312702232,1706165894120,155.0,0.00021619,2]
[312702233,1706165896228,250.66764355,0.00021619,2]
[312702234,1706165896537,247.42374992,0.00021423,2]
[312702235,1706165898884,384.82722047,0.00021619,2]
[312702236,1706165909011,22640.32220887,0.00021619,2]
[312702237,1706165911607,520.53145646,0.00021423,2]
[312702238,1706165916150,295.32515047,0.00021423,2]
[312702239,1706165917369,935.87,0.00021431,2]
[312702242,1706165924586,304.07333807,0.00021423,2]
[312702243,1706165927806,200.0,0.00020774,2]
[312702244,1706165927906,19853.3778,0.00021541,2]
[312702245,1706165930034,853.53299364,0.0002162,2]
[312702248,1706165936539,1652.17,0.00019509,2]
[312702249,1706165941536,155.0,0.00021619,2]
[312702250,1706165943142,1521.34,0.00021409,2]
[312702251,1706165947087,400.0,0.00021619,2]
[312702252,1706165948889,155.0,0.00021619,2]
[312702253,1706165950219,1903.64,0.00021409,2]
[312702254,1706165950449,10568.54913855,0.00021619,2]
[312702255,1706165951572,155.0,0.00021619,2]
[312702256,1706165951635,698.43245653,0.0002162,2]
[312702257,1706165953376,2506.67933284,0.00021619,2]
[312702258,1706165955195,155.0,0.00021619,2]
[312702259,1706165956227,155.0,0.00021619,2]
[312702260,1706165957850,265.85689275,0.00021619,2]
[312702261,1706165958356,178.08479796,0.00021619,2]
[312702262,1706165959645,488.8095824,0.00021619,2]
[312702263,1706165959929,230.86080006,0.00021619,2]
[312702264,1706165960054,310.6035145,0.00021619,2]
[312702265,1706165960402,355.01316218,0.00021619,2]
[312702266,1706165963037,525.90736384,0.00021619,2]
[312702267,1706165963629,226.33776838,0.00021619,2]
[312702268,1706165970687,200.0,0.00021409,2]
[312702269,1706165975434,295.89802556,0.00021619,2]
[312702270,1706165977417,384.82722047,0.00021619,2]
[312702271,1706165994618,760.46,0.00021368,2]
[312702272,1706165995687,206.2126,0.00021541,2]
[312702273,1706166002566,150.0,0.00021368,2]
[312702274,1706166002695,150.0,0.00021368,2]
[312702275,1706166002899,150.0,0.00021368,2]
[312702276,1706166003090,150.0,0.00021368,2]
[312702277,1706166003292,150.0,0.00021368,2]
[312702278,1706166004050,293.36135867,0.00021368,2]
[312702279,1706166004270,251.5017,0.00021541,2]
[312702280,1706166025513,218.36,0.00017081,2]
[312702281,1706166025567,218.36,0.00019216,2]
[312702282,1706166025836,218.36,0.00021351,2]
[312702283,1706166033591,400.0,0.00021619,2]
[312702284,1706166046200,226.33776838,0.00021619,2]
[312702285,1706166074413,200.0,0.00021313,2]
[312702286,1706166075769,409.04,0.00021313,2]
[312702287,1706166088457,437.56,0.00021313,2]
[312702288,1706166090807,155.0,0.00021295,2]
[312702289,1706166091420,861.36,0.00021295,2]
[312702290,1706166123095,684.17,0.00021295,2]
[312702291,1706166143266,2580.02,0.00021355,2]
[312702292,1706166212043,167.3,0.00021344,2]
[312702293,1706166213345,180.05,0.00021344,2]
[312702294,1706166220799,-156.40585233,0.0002162,2]
[312702295,1706166220819,-443.59414767,0.00021628,2]
[312702296,1706166224054,15729.1268,0.00021541,2]
[312702297,1706166246289,336.36851555,0.00020774,2]
[312702298,1706166272431,153.16,0.00021479,2]
[312702299,1706166272658,153.16,0.00021538,2]
[312702300,1706166272844,153.16,0.00021597,2]
[312702301,1706166285733,250.0,0.00021268,2]
[312702302,1706166293739,2000.0,0.00021268,2]
[312702303,1706166318305,23900.0,0.00021268,2]
[312702304,1706166329877,174.97,0.00016712,2]
[312702305,1706166345192,200.0,0.00020738,2]
[312702306,1706166367226,1630.74,0.00019363,2]
[312702307,1706166388589,19027.04764442,0.0002162,2]
[312702308,1706166399999,10568.54913855,0.0002162,2]
[312702311,1706166493270,218.36,0.00017105,2]
[312702312,1706166525505,200.0,0.00021371,2]
[312702313,1706166527874,154.77810274,0.00021524,2]
[312702314,1706166528594,200.0,0.00021264,2]
[312702315,1706166532830,154.77810269,0.00021596,2]
[312702316,1706166535548,649.95,0.00021371,2]
[312702317,1706166542831,150.0,0.0002162,2]
[312702318,1706166542893,150.0,0.0002162,2]
[312702319,1706166543474,300.0,0.0002162,2]
[312702320,1706166546128,-2993.40486111,0.00021621,2]
[312702321,1706166560112,1116.54346345,0.0002162,2]
[312702322,1706166565502,430.68,0.00021312,2]
[312702323,1706166581057,2150.01,0.00021303,2]
[312702329,1706166633624,-1982.0576214,0.00021621,2]
[312702330,1706166633645,-350.0,0.00021621,2]
[312702331,1706166633665,-2209.59114363,0.00021621,2]
[312702332,1706166633770,-850.0,0.00021621,2]
[312702334,1706166633782,-329.66712704,0.00021621,2]
[312702336,1706166633793,-456.81059646,0.00021621,2]
[312702340,1706166633824,-9606.00301058,0.00021621,2]
[312702381,1706166637857,-491.64613668,0.00021621,2]
[312702382,1706166638160,-2114.55833911,0.00021621,2]
[312702383,1706166638190,-2333.36605109,0.00021621,2]
[312702384,1706166638210,-9696.93465126,0.00021621,2]
[312702385,1706166638221,-2420.84521669,0.00021624,2]
[312702386,1706166638231,-1630.74,0.00021627,2]
[312702387,1706166638241,-310.12307981,0.00021634,2]
[312702388,1706166638251,-238.3921567,0.00021634,2]
[312702389,1706166638261,-155.2393239,0.00021636,2]
[312702390,1706166638270,-354.78394109,0.00021636,2]
[312702391,1706166638281,-491.66223309,0.00021636,2]
[312702392,1706166638291,-266.78047478,0.00021636,2]
[312702393,1706166638301,-230.72196555,0.00021636,2]
[312702394,1706166638311,-310.40414392,0.00021636,2]
[312702395,1706166638321,-177.97223727,0.00021636,2]
[312702396,1706166638330,-525.40921375,0.00021636,2]
[312702397,1706166638340,-296.6571453,0.00021636,2]
[312702398,1706166638352,-370.55775307,0.00021639,2]
[312702399,1706166638361,-231.92762337,0.00021639,2]
[312702400,1706166638371,-155.2700935,0.00021639,2]
[312702401,1706166638380,-155.0,0.00021639,2]
[312702402,1706166638390,-190.58101982,0.00021639,2]
[312702403,1706166638400,-698.5565345,0.00021639,2]
[312702404,1706166638410,-199.21031868,0.00021639,2]
[312702405,1706166638420,-155.6694992,0.00021639,2]
[312702406,1706166638431,-2612.65896919,0.00021639,2]
[312702407,1706166638441,-242.71053309,0.00021639,2]
[312702408,1706166638451,-280.65619007,0.00021639,2]
[312702409,1706166638461,-275.19644263,0.00021639,2]
[312702410,1706166638473,-219.10690949,0.00021639,2]
[312702411,1706166638483,-155.68020808,0.00021639,2]
[312702412,1706166638493,-155.28447193,0.00021639,2]
[312702413,1706166638502,-481.69275539,0.00021639,2]
[312702414,1706166638513,-164.5911684,0.00021639,2]
[312702415,1706166638522,-155.35175351,0.00021639,2]
[312702416,1706166638532,-166.39233109,0.00021639,2]
[312702417,1706166638542,-160.81397131,0.00021639,2]
[312702418,1706166638553,-281.98464175,0.00021639,2]
[312702419,1706166638562,-315.88053547,0.00021639,2]
[312702421,1706166638572,-501.71392863,0.00021639,2]
[312702423,1706166638582,-582.57983916,0.00021639,2]
[312702424,1706166638592,-674.35047883,0.00021639,2]
[312702425,1706166638601,-155.0,0.00021639,2]
[312702426,1706166638611,-756.59812366,0.00021639,2]
[312702427,1706166638620,-287.06002903,0.00021639,2]
[312702430,1706166638630,-282.80177468,0.00021639,2]
[312702432,1706166638639,-250.49913748,0.00021639,2]
[312702434,1706166638649,-155.9650335,0.00021639,2]
[312702436,1706166638658,-155.35242651,0.00021639,2]
[312702438,1706166638667,-156.11983464,0.00021639,2]
[312702440,1706166638676,-155.39275973,0.00021639,2]
[312702442,1706166638686,-10586.42210638,0.00021639,2]
[312702444,1706166638695,-200.48027435,0.0002164,2]
[312702446,1706166638704,-313.82257928,0.0002164,2]
[312702448,1706166638714,-6593.31185513,0.0002164,2]
[312702450,1706166638723,-29455.49403961,0.00021641,2]
[312702452,1706166638732,-989.4,0.00021644,2]
[312702454,1706166638741,-1840.6748121,0.00021645,2]
[312702456,1706166638750,-4639.68090559,0.00021645,2]
[312702458,1706166638759,-499.99,0.00021645,2]
[312702460,1706166638769,-970.18,0.00021645,2]
[312702462,1706166638778,-321.81,0.00021645,2]
[312702464,1706166638786,-153.16,0.00021656,2]
[312702466,1706166638796,-154.77810269,0.00021669,2]
[312702468,1706166638805,-675.32459632,0.00021689,2]
[312702470,1706166638814,-153.16,0.00021714,2]
[312702472,1706166638824,-154.77810269,0.00021741,2]
[312702474,1706166638833,-153.16,0.00021773,2]
[312702476,1706166638843,-154.77810269,0.00021814,2]
[312702478,1706166638853,-153.16,0.00021832,2]
[312702480,1706166638862,-154.77810269,0.00021886,2]
[312702482,1706166638871,-153.16,0.00021891,2]
[312702484,1706166638881,-250.0,0.00021918,2]
[312702486,1706166638890,-2500.0,0.00021918,3]
[312702488,1706166638899,-399.76,0.00021918,2]
[312702490,1706166638908,-153.16,0.0002195,2]
[312702492,1706166638918,-154.77810269,0.00021959,2]
[312702494,1706166638927,-150.0,0.00022,2]
[312702496,1706166638937,-248.21248276,0.00022,2]
[312702498,1706166638946,-150.0,0.00022,2]
[312702500,1706166638955,-176.54,0.00022,2]
[312702502,1706166638965,-500.0,0.00022,2]
[312702504,1706166638975,-150.0,0.00022,2]
[312702506,1706166638984,-153.16,0.00022009,2]
[312702508,1706166638994,-154.77810269,0.00022031,2]
[312702511,1706166639003,-1707.76302595,0.00022065,2]
[312702513,1706166639013,-153.16,0.00022068,2]
[312702515,1706166639022,-154.77810269,0.00022103,2]
[312702517,1706166639031,-153.16,0.00022127,2]
[312702519,1706166639040,-154.77810269,0.00022176,2]
[312702521,1706166639050,-153.16,0.00022186,2]
[312702523,1706166639059,-153.16,0.00022245,2]
[312702524,1706166639069,-154.77810269,0.00022248,2]
[312702525,1706166639078,-153.16,0.00022303,2]
[312702526,1706166639087,-154.77810269,0.00022321,2]
[312702527,1706166639096,-153.16,0.00022362,2]
[312702528,1706166639106,-154.77810269,0.00022393,2]
[312702529,1706166639115,-479.01122374,0.000224,2]
[312702530,1706166639125,-153.16,0.00022421,2]
[312702531,1706166639134,-989.4,0.00022445,2]
[312702532,1706166639144,-154.77810269,0.00022465,2]
[312702533,1706166639153,-153.16,0.0002248,2]
[312702535,1706166639163,-154.77810269,0.00022538,2]
[312702537,1706166639172,-153.16,0.00022539,2]
[312702539,1706166639181,-176.54,0.00022548,2]
[312702541,1706166639192,-153.16,0.00022598,2]
[312702543,1706166639202,-1200.0,0.000226,8]
[312702545,1706166639214,-154.77810269,0.0002261,2]
[312702547,1706166639223,-8846.2584,0.00022647,2]
[312702549,1706166639233,-157.3799,0.00022648,2]
[312702551,1706166639242,-525.601,0.00022648,2]
[312702553,1706166639251,-154.77810269,0.00022683,2]
[312702555,1706166639261,-2400.0,0.000227,8]
[312702557,1706166639270,-250.07775368,0.00022747,2]
[312702559,1706166639280,-155.07841659,0.00022747,2]
[312702561,1706166639291,-1864.81523161,0.00022747,2]
[312702563,1706166639300,-177.59230134,0.00022747,2]
[312702565,1706166639309,-3332.39700873,0.00022747,2]
[312702567,1706166639319,-155.09083798,0.00022747,2]
[312702569,1706166639329,-3057.86969194,0.00022747,2]
[312702571,1706166639338,-1046.49412238,0.00022748,2]
[312702573,1706166639351,-2633.31053282,0.00022748,2]
[312702575,1706166639360,-4251.93051247,0.00022748,2]
[312702577,1706166639370,-9773.96755312,0.00022748,2]
[312702579,1706166639379,-53354.54859673,0.0002275,2]
[312702581,1706166639390,-154.77810269,0.00022755,2]
[312702583,1706166639399,-262.0,0.0002277,2]
[312702585,1706166639409,-3700.0,0.000228,8]
[312702587,1706166639419,-154.77810269,0.00022828,2]
[312702589,1706166639430,-1652.45387655,0.00022899,2]
[312702591,1706166639440,-168.32412907,0.000229,2]
[312702593,1706166639449,-152.88280839,0.000229,2]
[312702595,1706166639459,-170.64638633,0.000229,2]
[312702597,1706166639469,-6049.10365893,0.000229,2]
[312702598,1706166639478,-201.55878193,0.000229,2]
[312702599,1706166639488,-173.0825684,0.000229,2]
[312702600,1706166639497,-154.77810269,0.000229,2]
[312702601,1706166639508,-4900.0,0.000229,8]
[312702603,1706166639518,-2150.01,0.00022947,2]
[312702604,1706166639527,-1124.63119894,0.00022996,2]
[312702605,1706166639536,-4276.78305022,0.00022996,2]
[312702606,1706166639547,-5834.73728447,0.00022997,2]
[312702607,1706166639557,-322.16947364,0.00022999,2]
[312702608,1706166639567,-208652.81409907,0.00022999,2]
[312702609,1706166639576,-500.0,0.00022999,2]
[312702610,1706166639586,-500.0,0.00022999,2]
[312702611,1706166639595,-465.48274674,0.00022999,2]
[312702612,1706166639605,-550.69141672,0.00022999,2]
[312702613,1706166639614,-502.42725245,0.00022999,2]
[312702614,1706166639623,-2237617.51798277,0.00023,2]
[312702615,1706166639637,-81281.43090992,0.00023,2]
[312702616,1706166639647,-943.97973617,0.00023,2]
[312702617,1706166639656,-223.07409071,0.00023,20]
[312702618,1706166639666,-57413.44860734,0.00023,2]
[312702619,1706166639675,-176.54,0.00023096,2]
[312702620,1706166639684,-989.4,0.00023245,2]
[312702621,1706166639693,-261.38574536,0.0002337,2]
[312702622,1706166639702,-180.0,0.00023409,2]
[312702623,1706166639713,-150.0,0.000235,2]
[312702624,1706166639722,-420.0,0.00023503,2]
[312702625,1706166639732,-180.48,0.00023525,2]
[312702626,1706166639742,-176.54,0.00023644,2]
[312702627,1706166639751,-1630.74,0.00023891,2]
[312702628,1706166639760,-437.56,0.00023977,2]
[312702629,1706166639770,-649.95,0.00024042,2]
[312702630,1706166639779,-989.4,0.00024046,2]
[312702631,1706166639789,-176.54,0.00024192,2]
[312702632,1706166639798,-152.88280836,0.00024211,2]
[312702633,1706166639808,-2150.01,0.00024591,2]
[312702634,1706166639817,-250.0,0.00024658,2]
[312702635,1706166639826,-176.54,0.0002474,2]
[312702636,1706166639836,-989.4,0.00024847,2]
[312702637,1706166639846,-174.97,0.00024881,2]
[312702638,1706166639855,-450.0,0.00025,3]
[312702639,1706166639865,-176.54,0.00025288,2]
[312702640,1706166639874,-6049.10365887,0.00025367,2]
[312702641,1706166639883,-152.88280836,0.00025522,2]
[312702642,1706166639892,-261.0,0.0002555,2]
[312702643,1706166639902,-180.05,0.00025613,2]
[312702644,1706166639911,-218.36,0.00025658,2]
[312702645,1706166639920,-180.48,0.00025664,2]
[312702646,1706166639930,-176.54,0.00025836,2]
[312702647,1706166639939,-412.9450634,0.00025999,2]
[312702648,1706166639949,-500.0,0.00026,2]
[312702650,1706166639958,-1630.74,0.00026155,2]
[312702652,1706166639967,-2150.01,0.00026235,2]
[312702654,1706166639977,-176.54,0.00026384,2]
[312702656,1706166639986,-1499.24,0.00026575,2]
[312702657,1706166639996,-656.26,0.00026575,2]
[312702658,1706166640006,-1000.0,0.00026575,2]
[312702659,1706166640015,-437.56,0.00026641,2]
[312702660,1706166640024,-649.95,0.00026714,2]
[312702661,1706166640034,-1652.45387655,0.00026776,3]
[312702662,1706166640043,-152.88280836,0.00026833,2]
[312702664,1706166640052,-302.65688624,0.00026932,2]
[312702666,1706166640062,-416.74046283,0.00027,2]